{"text_format":"1","workbook":"xlsx","n_sheets":3,"sheets":["invoice","codes","mostafa"],"not_rendered":{"charts":0,"images":1,"macros":1,"external_links":0,"defined_names":5,"comments":0,"pivot_tables":0},"unopened":[],"bounds":{"document_bytes":16777216,"sheet_cells":100000,"rows_first":2000,"rows_last":500,"rows_between":2000,"halvings":0,"cell_chars":16384,"cell_head_chars":4096},"cells_cut":0,"cells_raw":0,"read":"whole","date_system":"1900"}

{"sheet":"invoice","index":0,"n_rows":64,"n_cols":10,"rows_kept":64,"cut":false,"hidden":false,"merged":[[2,2,2,3],[4,2,4,3],[60,8,60,9],[60,6,60,7],[61,8,61,9],[6,7,6,8],[6,2,6,3],[63,8,63,9],[62,8,62,9],[63,3,63,4],[61,6,61,7],[62,3,62,4],[62,6,62,7],[63,6,63,7]]}
[]
[null,null,null,null,null,null,null,null,null,10]
[null,null,"التاريخ :",null,{"$f":"NOW()","v":"2018-08-15T19:36:35.690"},{"$f":"$E$3","v":43327.817079745371},null,null,9]
[]
[null,null,"السيد :"]
[]
[]
[]
[null,null,"العداد","الكود","اسم الصنف","الكمية","الوحدة","السعر","القيمه","الملاحظات"]
[3,null,null,12,"سكر 8",21,"لتر",22,{"$f":"IF(OR(F10=\"\",H10=\"\"),\"\",F10*H10)","v":462}]
[null,null,null,3,"زيت 15",10,null,10,100]
[null,null,null,4,"جفيل 18",5,"جرام",4,20]
[null,null,null,6,"سردين 50",10,"كيلو",3,30]
[null,null,null,6,"طماط 50",10,null,8,80]
[null,null,null,null,null,null,null,null,""]
[null,null,null,null,null,null,null,null,""]
[null,null,null,null,null,null,null,null,""]
[null,null,null,null,null,null,null,null,""]
[null,null,null,null,null,null,null,null,""]
[null,null,null,null,null,null,null,null,""]
[null,null,null,null,null,null,null,null,""]
[null,null,null,null,null,null,null,null,""]
[null,null,null,null,null,null,null,null,""]
[null,null,null,null,null,null,null,null,""]
[null,null,null,null,null,null,null,null,""]
[null,null,null,null,null,null,null,null,""]
[null,null,null,null,null,null,null,null,""]
[null,null,null,null,null,null,null,null,""]
[null,null,null,null,null,null,null,null,""]
[null,null,null,null,null,null,null,null,""]
[null,null,null,null,null,null,null,null,""]
[null,null,null,null,null,null,null,null,""]
[null,null,null,null,null,null,null,null,""]
[null,null,null,null,null,null,null,null,""]
[null,null,null,null,null,null,null,null,""]
[null,null,null,null,null,null,null,null,""]
[null,null,null,null,null,null,null,null,""]
[null,null,null,null,null,null,null,null,""]
[null,null,null,null,null,null,null,null,""]
[null,null,null,null,null,null,null,null,""]
[null,null,null,null,null,null,null,null,""]
[null,null,null,null,null,null,null,null,""]
[null,null,null,null,null,null,null,null,""]
[null,null,null,null,null,null,null,null,""]
[null,null,null,null,null,null,null,null,""]
[null,null,null,null,null,null,null,null,""]
[null,null,null,null,null,null,null,null,""]
[null,null,null,null,null,null,null,null,""]
[null,null,null,null,null,null,null,null,""]
[null,null,null,null,null,null,null,null,""]
[null,null,null,null,null,null,null,null,""]
[null,null,null,null,null,null,null,null,""]
[null,null,null,null,null,null,null,null,""]
[null,null,null,null,null,null,null,null,""]
[null,null,null,null,null,null,null,null,""]
[null,null,null,null,null,null,null,null,""]
[null,null,null,null,null,null,null,null,""]
[null,null,null,null,null,null,null,null,""]
[null,null,null,null,null,null,null,null,""]
[null,null,null,null,null,null,null,null,""]
[null,null,null,null,null,null,"المجموع",null,{"$f":"SUM(I10:I59)","v":692}]
[null,null,null,null,null,null,"الباقي",null,0]
[null,null,null,null,null,null,"دفع",null,0]
[null,null,null,null,null,null,"الاجمالي",null,{"$f":"+I62+I61-I63","v":692}]

{"sheet":"codes","index":1,"n_rows":12,"n_cols":6,"rows_kept":12,"cut":false,"hidden":false,"merged":[]}
["الكود","اسم الصنف","الوحدة","السعر البيع","السعر شراء"]
[12,"سكر 8","لتر",22,25]
[33,"سكر 8","كيلو",3.577,3,"الرجاء الدخول للفيجوال بيسك و الاطلاع على الفورم لفهم المطلوب بالضبط وشكرا مسبق للجميع على مساعدتهم"]
[3,"زيت 15",null,10,10]
[4,"جفيل 18","جرام",4,3]
[6,"سردين 50","كيلو",3,2]
[6,"طماط 50",null,8,7]
[7,"شاي",null,10,9]
[8,"قهوة 250",null,12,11]
[9,"زبدا 25",null,21,20]
[10,"طحين 25",null,21,20]
[11,"صابون ","جرام",300,100]

{"sheet":"mostafa","index":2,"n_rows":1,"n_cols":1,"rows_kept":1,"cut":false,"hidden":false,"merged":[]}
["mostafa"]